bitfinex-derivatives/quotes_BTCF0:USTF0_20250806
["timestamp","ask_amount","ask_price","bid_price","bid_amount"]
[1754507043596,0.1760415,115560.0,115550.0,2.29500859]
[1754507044590,0.1991915,115560.0,115550.0,2.29500859]
[1754507045290,0.1991915,115560.0,115550.0,1.80010714]
[1754507050299,0.2335815,115560.0,115550.0,1.80010714]
[1754507050490,0.1991915,115560.0,115550.0,1.80010714]
[1754507052891,0.1991915,115560.0,115550.0,2.22488156]
[1754507053494,0.1991915,115560.0,115550.0,1.80010714]
[1754507054398,0.1760415,115560.0,115550.0,2.22488156]
[1754507056503,0.003,115560.0,115550.0,2.22488156]
[1754507056801,0.002,115560.0,115550.0,2.22488156]
[1754507057110,0.3028186,115570.0,115560.0,0.3040817]
[1754507057304,0.3028186,115570.0,115560.0,1.32684654]
[1754507057502,0.3028186,115570.0,115560.0,1.62684656]
[1754507058202,0.2595586,115570.0,115560.0,1.62684656]
[1754507058403,0.2595586,115570.0,115560.0,0.77729772]
[1754507058610,0.2595586,115570.0,115560.0,1.62684656]
[1754507059302,0.2615586,115570.0,115560.0,1.62684656]
[1754507059802,0.2625586,115570.0,115560.0,1.62684656]
[1754507061396,0.2625586,115570.0,115560.0,1.64732493]
[1754507065804,0.2625586,115570.0,115560.0,1.62684656]
[1754507066004,0.2625586,115570.0,115560.0,1.64718475]
[1754507066405,0.2867486,115570.0,115560.0,1.64718475]
[1754507067404,0.2867486,115570.0,115560.0,1.62684656]
[1754507069206,0.2867486,115570.0,115560.0,1.32684654]
[1754507069708,0.2867486,115570.0,115560.0,1.62684656]
[1754507073508,0.2867486,115570.0,115560.0,1.45363056]
[1754507073707,0.2867486,115570.0,115560.0,1.62684656]
[1754507074013,0.2837223,115580.0,115570.0,0.3040667]
[1754507074204,0.2595323,115580.0,115570.0,1.49633712]
[1754507074397,0.2837223,115580.0,115570.0,1.79633714]
[1754507074907,0.2837223,115580.0,115570.0,2.22111156]
[1754507075110,0.2837223,115580.0,115570.0,1.79633714]
[1754507075696,0.3983923,115580.0,115570.0,1.79633714]
[1754507076108,0.4013923,115580.0,115570.0,1.79633714]
[1754507080003,0.4013923,115580.0,115570.0,1.17851714]
[1754507080208,0.4013923,115580.0,115570.0,1.47755712]
[1754507080803,0.4013923,115580.0,115570.0,1.50247712]
[1754507081918,0.4013923,115580.0,115570.0,0.90343712]
[1754507082217,0.4013923,115580.0,115570.0,1.50247712]
[1754507083214,0.4013923,115580.0,115570.0,0.90343712]
[1754507083407,0.4013923,115580.0,115570.0,0.87851712]
[1754507084713,0.4013923,115580.0,115570.0,0.188796]
[1754507084917,0.82616672,115580.0,115570.0,0.81720712]
[1754507085417,0.82616672,115580.0,115570.0,0.84002712]
[1754507086414,0.82616672,115580.0,115570.0,0.85630712]
[1754507087619,0.82616672,115580.0,115570.0,0.87733712]
[1754507088220,0.4013923,115580.0,115570.0,0.87733712]
[1754507088522,0.4013923,115580.0,115570.0,0.70431042]
[1754507088920,0.4013923,115580.0,115570.0,0.87733712]
[1754507089522,0.4013923,115580.0,115570.0,0.4774827]
[1754507089723,0.4013923,115580.0,115570.0,0.90225712]
[1754507092027,0.4013923,115580.0,115570.0,0.72904112]
[1754507092228,0.4013923,115580.0,115570.0,0.90225712]
[1754507092826,0.4013923,115580.0,115570.0,0.4774827]
[1754507093028,0.4013923,115580.0,115570.0,0.90225712]
[1754507093427,0.3040423,115580.0,115570.0,0.90225712]
[1754507093833,0.4000323,115580.0,115570.0,0.90225712]
[1754507098535,0.4000323,115580.0,115570.0,0.72904112]
[1754507098736,0.4000323,115580.0,115570.0,0.72923042]
[1754507098927,0.4000323,115580.0,115570.0,0.61357042]
[1754507099127,0.4000323,115580.0,115570.0,0.66700042]
[1754507099435,0.4000323,115580.0,115570.0,0.85630722]
[1754507099636,0.4000323,115580.0,115570.0,0.87733722]
[1754507100136,0.4000323,115580.0,115570.0,0.90225722]
[1754507100538,0.82480672,115580.0,115570.0,0.85451722]
[1754507100838,0.82480672,115580.0,115570.0,0.87733722]
[1754507101134,0.4000323,115580.0,115570.0,0.87733722]
[1754507102237,0.4000323,115580.0,115570.0,0.70412122]
[1754507102539,0.4000323,115580.0,115570.0,0.87733722]
[1754507102734,0.4000323,115580.0,115570.0,0.4525628]
[1754507102932,0.4000323,115580.0,115570.0,0.87733722]
[1754507104730,0.82480672,115580.0,115570.0,0.87733722]
[1754507105538,0.4000323,115580.0,115570.0,0.87733722]
[1754507105741,0.82480672,115580.0,115570.0,0.90225722]
[1754507105940,0.4000323,115580.0,115570.0,0.90225722]
[1754507106738,0.4000323,115580.0,115570.0,0.4774828]
[1754507106942,0.4000323,115580.0,115570.0,0.90225722]
[1754507107936,0.4000323,115580.0,115570.0,0.72923042]
[1754507108138,0.4000323,115580.0,115570.0,0.90225722]
[1754507109748,0.4000323,115580.0,115570.0,0.96982525]
[1754507112346,0.4000323,115580.0,115570.0,0.79660925]
[1754507112538,0.4000323,115580.0,115570.0,0.96982525]
[1754507115449,0.4000323,115580.0,115570.0,1.56682525]
[1754507117340,0.4000323,115580.0,115570.0,0.96982525]
[1754507118748,0.2887223,115580.0,115570.0,0.96982525]
[1754507119141,0.3353123,115580.0,115570.0,0.96982525]
[1754507119444,0.3964923,115580.0,115570.0,0.96982525]
[1754507120249,0.3964923,115580.0,115570.0,0.79679845]
[1754507120447,0.3964923,115580.0,115570.0,0.96982515]
[1754507121750,0.3964923,115580.0,115570.0,0.79679845]
[1754507122349,0.3964923,115580.0,115570.0,0.96982515]
[1754507122549,0.3964923,115580.0,115570.0,0.79679845]
[1754507122744,0.3964923,115580.0,115570.0,0.72923042]
[1754507122951,0.3964923,115580.0,115570.0,0.90225712]
[1754507125856,0.3964923,115580.0,115570.0,0.4774827]
[1754507126045,0.3964923,115580.0,115570.0,0.90225712]
[1754507126547,0.3964923,115580.0,115570.0,0.72923042]
[1754507126846,0.3964923,115580.0,115570.0,0.90225712]
[1754507127952,0.3964923,115580.0,115570.0,0.72904112]
[1754507128154,0.3964923,115580.0,115570.0,0.90225712]
[1754507129055,0.3964923,115580.0,115570.0,0.4774827]
[1754507129247,0.3964923,115580.0,115570.0,0.90225712]
[1754507130356,0.3964923,115580.0,115570.0,0.72904112]
[1754507130654,0.3964923,115580.0,115570.0,0.90225712]
[1754507134760,0.2645323,115580.0,115570.0,0.90225712]
[1754507134954,0.2645323,115580.0,115570.0,1.20225714]
[1754507135263,0.2396123,115580.0,115570.0,1.64494507]
[1754507135665,0.1963565,115580.0,115570.0,1.64494507]
[1754507136566,0.005,115580.0,115570.0,1.64494507]
[1754507137365,0.1780118,115580.0,115570.0,1.64494507]
[1754507141363,0.1780118,115580.0,115570.0,1.20225714]
[1754507141569,0.3078718,115580.0,115570.0,1.17733714]
[1754507142374,0.2858718,115580.0,115570.0,1.17733714]
[1754507142960,0.2161518,115580.0,115570.0,0.75256272]
[1754507143164,0.3078718,115580.0,115570.0,1.17733714]
[1754507144266,0.3078718,115580.0,115570.0,1.24648312]
[1754507148271,0.2858718,115580.0,115570.0,1.20808312]
[1754507148472,0.3078718,115580.0,115570.0,1.22999312]
[1754507149474,0.2858718,115580.0,115570.0,1.22999312]
[1754507151678,0.2206218,115580.0,115570.0,1.22999312]
[1754507151877,0.1980118,115580.0,115570.0,1.65476754]
[1754507152464,0.2206218,115580.0,115570.0,1.65476754]
[1754507156375,0.1780118,115580.0,115570.0,1.65476754]
[1754507156878,0.1980118,115580.0,115570.0,1.65476754]
[1754507157185,0.2206218,115580.0,115570.0,1.65476754]
[1754507158282,0.2206218,115580.0,115570.0,1.48155154]
[1754507158482,0.2206218,115580.0,115570.0,1.65476754]
[1754507161870,0.2006218,115580.0,115570.0,1.65476754]
[1754507164782,0.2006218,115580.0,115570.0,1.35476752]
[1754507164981,0.2006218,115580.0,115570.0,1.58562156]
[1754507171292,0.2006218,115580.0,115570.0,1.60040156]
[1754507172698,0.2006218,115580.0,115570.0,0.75085272]
[1754507172901,0.2006218,115580.0,115570.0,1.60040156]
[1754507175898,0.2206218,115580.0,115570.0,1.60040156]
[1754507176405,0.2206218,115580.0,115570.0,1.17562714]
[1754507176702,0.2206218,115580.0,115570.0,1.60040156]
[1754507177306,0.3291118,115580.0,115570.0,1.17562714]
[1754507179107,0.3068518,115580.0,115570.0,1.17562714]
[1754507179506,0.3068518,115580.0,115570.0,1.60040156]
[1754507180704,0.2360418,115580.0,115570.0,1.60040156]
[1754507180905,0.2160418,115580.0,115570.0,0.75085272]
[1754507181097,0.2160418,115580.0,115570.0,1.60040156]
[1754507182899,0.2160418,115580.0,115570.0,1.42718556]
[1754507183105,0.2160418,115580.0,115570.0,1.60040156]
[1754507183808,0.2501018,115580.0,115570.0,1.60040156]
[1754507184005,0.2501018,115580.0,115570.0,1.17562714]
[1754507184506,0.2160418,115580.0,115570.0,1.17562714]
[1754507184911,0.2160418,115580.0,115570.0,1.60040156]
[1754507186307,0.2160418,115580.0,115570.0,1.17562714]
[1754507186609,0.2160418,115580.0,115570.0,1.60040156]
[1754507187105,0.2360418,115580.0,115570.0,1.60040156]
[1754507188604,0.2360418,115580.0,115570.0,1.17562714]
[1754507189208,0.2360418,115580.0,115570.0,1.80281025]
[1754507190305,0.2360418,115580.0,115570.0,1.60040156]
[1754507191114,0.2701018,115580.0,115570.0,1.60040156]
[1754507191412,0.2701018,115580.0,115570.0,1.17562714]
[1754507192012,0.2501018,115580.0,115570.0,1.17562714]
[1754507193103,0.2501018,115580.0,115570.0,1.60040156]
[1754507194714,0.2501018,115580.0,115570.0,1.17562714]
[1754507195720,0.2501018,115580.0,115570.0,1.60040156]
[1754507196711,0.3091118,115580.0,115570.0,0.75085272]
[1754507197015,0.3091118,115580.0,115570.0,1.17562714]
[1754507198416,0.3091118,115580.0,115570.0,1.00241114]
[1754507198618,0.3091118,115580.0,115570.0,1.17562714]
[1754507200410,0.73388622,115580.0,115570.0,0.802946]
[1754507200608,0.73388622,115580.0,115570.0,1.03347442]
[1754507200815,0.3091118,115580.0,115570.0,1.03347442]
[1754507201509,0.73388622,115580.0,115570.0,0.01478]
[1754507201713,0.2261868,115570.0,115560.0,1.29714905]
[1754507201912,0.3040368,115570.0,115560.0,1.96519122]
[1754507202108,0.3040368,115570.0,115560.0,1.37127122]
[1754507202308,0.3040368,115570.0,115560.0,1.96515122]
[1754507203712,0.3040368,115570.0,115560.0,1.96715122]
[1754507204116,0.3040368,115570.0,115560.0,1.5433768]
[1754507204418,0.3040368,115570.0,115560.0,1.96815122]
[1754507205019,0.3040368,115570.0,115560.0,1.37427122]
[1754507205223,0.3040368,115570.0,115560.0,1.96819122]
[1754507206320,0.3040368,115570.0,115560.0,1.11864238]
[1754507206519,0.3040368,115570.0,115560.0,1.96819122]
[1754507206820,0.3040368,115570.0,115560.0,1.11864238]
[1754507207021,0.3040368,115570.0,115560.0,1.96819122]
[1754507215619,0.1730268,115570.0,115560.0,1.79497522]
[1754507215819,0.1956968,115570.0,115560.0,1.79497522]
[1754507216627,0.1956968,115570.0,115560.0,1.96819122]
[1754507217218,0.1956968,115570.0,115560.0,1.11864238]
[1754507217414,0.1956968,115570.0,115560.0,1.96819122]
[1754507218827,0.2592868,115570.0,115560.0,1.96819122]
[1754507219031,0.3040368,115570.0,115560.0,1.96819122]
[1754507220826,0.3040368,115570.0,115560.0,1.37427122]
[1754507221030,0.3040368,115570.0,115560.0,1.96815112]
[1754507222634,0.1730268,115570.0,115560.0,1.96815112]
[1754507223029,0.1956968,115570.0,115560.0,1.96815112]
[1754507224836,0.2121768,115570.0,115560.0,1.11860228]
[1754507225027,0.2121768,115570.0,115560.0,1.96815112]
[1754507226333,0.2121768,115570.0,115560.0,1.89809937]
[1754507229335,0.2121768,115570.0,115560.0,1.04855053]
[1754507229536,0.2121768,115570.0,115560.0,1.89809937]
[1754507230740,0.2813268,115570.0,115560.0,1.89809937]
[1754507230938,0.3029068,115570.0,115560.0,1.89809937]
[1754507231138,0.3029068,115570.0,115560.0,1.04855053]
[1754507231439,0.3029068,115570.0,115560.0,1.89809937]
[1754507232338,0.3029068,115570.0,115560.0,1.30421937]
[1754507232541,0.3029068,115570.0,115560.0,1.89805937]
[1754507232835,0.72768122,115570.0,115560.0,0.49490442]
[1754507233041,0.72768122,115570.0,115560.0,1.11071442]
[1754507233245,0.72768122,115570.0,115560.0,0.0921]
[1754507233433,0.72768122,115570.0,115560.0,0.51687442]
[1754507235440,1.32152122,115570.0,115560.0,0.68991612]
[1754507235645,1.32152122,115570.0,115560.0,0.51687442]
[1754507235845,1.32152122,115570.0,115560.0,0.68991612]
[1754507237345,1.32152122,115570.0,115560.0,0.51687442]
[1754507237542,1.32152122,115570.0,115560.0,0.0921]
[1754507237748,1.32152122,115570.0,115560.0,0.51687442]
[1754507238449,1.32152122,115570.0,115560.0,0.0921]
[1754507238643,1.32152122,115570.0,115560.0,0.44177442]
[1754507238850,1.32152122,115570.0,115560.0,0.003]
[1754507240649,1.27437017,115570.0,115560.0,0.003]
[1754507246650,1.27437017,115570.0,115520.0,1.63216206]
[1754507246651,0.1731016,115520.0,115510.0,0.52361299]
[1754507246851,0.2496316,115520.0,115510.0,1.18003808]
[1754507247153,0.3037116,115520.0,115510.0,1.35315468]
[1754507247352,0.3037116,115520.0,115510.0,1.15074599]
[1754507247746,0.3047116,115520.0,115510.0,1.15674599]
[1754507247947,0.3047116,115520.0,115510.0,0.68362937]
[1754507248145,0.3047116,115520.0,115510.0,0.98362939]
[1754507248350,0.3047116,115520.0,115510.0,1.05242352]
[1754507248550,0.3047116,115520.0,115510.0,1.64426352]
[1754507248951,0.3057116,115520.0,115510.0,1.65326352]
[1754507249158,0.2841316,115520.0,115510.0,1.65326352]
[1754507249349,0.3047116,115520.0,115510.0,1.64426352]
[1754507249549,0.2516316,115520.0,115510.0,1.65026352]
[1754507249749,0.3057116,115520.0,115510.0,1.65026352]
[1754507250258,0.3057116,115520.0,115510.0,1.05642352]
[1754507250557,0.2841316,115520.0,115510.0,1.65030352]
[1754507250956,0.2841316,115520.0,115510.0,1.05642352]
[1754507251160,0.2841316,115520.0,115510.0,1.65030352]
[1754507251552,0.3057116,115520.0,115510.0,1.05642352]
[1754507251755,0.3057116,115520.0,115510.0,0.20558413]
[1754507252154,0.3057116,115520.0,115510.0,0.1142]
[1754507252347,0.3057116,115520.0,115510.0,0.03974]
[1754507253257,0.3057116,115520.0,115510.0,0.07035]
[1754507253561,0.8996316,115520.0,115510.0,0.07035]
[1754507254150,0.8996316,115520.0,115510.0,0.09232]
[1754507255058,0.8996316,115520.0,115510.0,0.2873166]
[1754507255254,0.8996316,115520.0,115510.0,0.49182337]
[1754507255458,0.3057116,115520.0,115510.0,0.49182337]
[1754507255860,0.3057116,115520.0,115510.0,0.66493997]
[1754507256259,0.3057116,115520.0,115510.0,0.2873166]
[1754507256662,0.3057116,115520.0,115510.0,0.66493997]
[1754507257152,0.3057116,115520.0,115510.0,0.68752997]
[1754507260157,0.3057116,115520.0,115510.0,0.3099066]
[1754507260358,0.3057116,115520.0,115510.0,0.68752997]
[1754507261365,0.3057116,115520.0,115510.0,0.51441337]
[1754507263563,0.3057116,115520.0,115510.0,0.13679]
[1754507263762,0.3057116,115520.0,115510.0,0.51441337]
[1754507264264,0.3057116,115520.0,115510.0,0.13679]
[1754507264456,0.3057116,115520.0,115510.0,0.51441337]
[1754507264657,0.3057116,115520.0,115510.0,0.68752997]
[1754507264961,0.3057116,115520.0,115510.0,0.51441337]
[1754507265164,0.3057116,115520.0,115510.0,0.13679]
[1754507265365,0.3057116,115520.0,115510.0,0.51441337]
[1754507266369,0.3057116,115520.0,115510.0,0.68752997]
[1754507266569,0.3057116,115520.0,115510.0,0.3099066]
[1754507266769,0.3057116,115520.0,115510.0,0.68752997]
[1754507268971,0.3057116,115520.0,115510.0,0.3099066]
[1754507269170,0.3057116,115520.0,115510.0,0.51441337]
[1754507269870,0.3057116,115520.0,115510.0,0.68752997]
[1754507273974,0.3057116,115520.0,115510.0,0.51441337]
[1754507274678,0.73079811,115520.0,115510.0,0.56187651]
[1754507274979,0.73079811,115520.0,115510.0,0.13679]
[1754507275278,0.73079811,115520.0,115510.0,0.56187651]
[1754507279481,0.72979811,115520.0,115510.0,0.55587651]
[1754507279680,0.73079811,115520.0,115510.0,0.56087651]
[1754507280281,0.72979811,115520.0,115510.0,0.55687651]
[1754507280484,0.73079811,115520.0,115510.0,0.55987651]
[1754507280781,0.3057116,115520.0,115510.0,0.55987651]
[1754507281186,0.3057116,115520.0,115510.0,0.73299311]
[1754507282590,0.3057116,115520.0,115510.0,0.53728651]
[1754507282792,0.3057116,115520.0,115510.0,0.55981651]
[1754507283194,0.3057116,115520.0,115510.0,0.73293311]
[1754507284289,0.8996316,115520.0,115510.0,0.73293311]
[1754507287690,0.2516316,115520.0,115510.0,0.73293311]
[1754507287990,0.1751016,115520.0,115510.0,1.20614913]
[1754507288395,0.2851716,115520.0,115510.0,1.20614913]
[1754507288584,0.3052216,115520.0,115510.0,1.20614913]
[1754507289393,0.1751016,115520.0,115510.0,1.20614913]
[1754507289897,0.1751016,115520.0,115510.0,1.63123564]
[1754507290085,0.1751016,115520.0,115510.0,1.20614913]
[1754507290691,0.1751016,115520.0,115510.0,1.1587561]
[1754507291093,0.1751016,115520.0,115510.0,1.17209314]
[1754507291290,0.002,115520.0,115510.0,1.17209314]
[1754507291495,0.3028934,115540.0,115530.0,0.2961466]
[1754507291696,0.3258434,115540.0,115530.0,0.84705608]
[1754507291995,0.3258434,115540.0,115530.0,1.1470561]
[1754507292195,0.3028934,115540.0,115530.0,1.1470561]
[1754507292789,0.3258434,115540.0,115530.0,1.1470561]
[1754507293398,0.3258434,115540.0,115530.0,1.1480561]
[1754507294094,0.2825719,115540.0,115530.0,1.1480561]
[1754507294301,0.1960331,115540.0,115530.0,1.1500561]
[1754507298401,0.1730831,115540.0,115530.0,1.1500561]
[1754507302302,0.1730831,115540.0,115530.0,0.85005608]
[1754507302806,0.3033231,115540.0,115530.0,1.1500561]
[1754507303103,0.3033231,115540.0,115530.0,0.77236262]
[1754507303300,0.3033231,115540.0,115530.0,1.1500561]
[1754507304989,0.3033231,115540.0,115530.0,1.1046761]
[1754507305190,0.3033231,115540.0,115530.0,1.1273461]
[1754507307103,0.2824331,115540.0,115530.0,1.1273461]
[1754507307906,0.2824331,115540.0,115530.0,1.1500561]
[1754507308304,0.2685131,115540.0,115530.0,1.1361661]
[1754507309307,0.1730831,115540.0,115530.0,1.1361661]
[1754507309605,0.1960331,115540.0,115530.0,1.1500561]
[1754507310402,0.2306631,115540.0,115530.0,1.1500561]
[1754507310607,0.3033231,115540.0,115530.0,1.7437361]
[1754507311908,0.3033231,115540.0,115530.0,1.7298461]
[1754507313903,0.2120431,115540.0,115530.0,1.1361661]
[1754507314205,0.1730831,115540.0,115530.0,1.7145061]
[1754507317604,0.1960331,115540.0,115530.0,1.7145061]
[1754507322119,0.1960331,115540.0,115530.0,0.77232262]
[1754507322425,0.3016431,115540.0,115530.0,1.7436561]
[1754507322612,0.3016431,115540.0,115530.0,2.21569962]
[1754507324619,0.3016431,115540.0,115530.0,1.74361717]
[1754507325514,0.3016431,115540.0,115530.0,1.14997717]
[1754507325818,0.3016431,115540.0,115530.0,0.96072525]
[1754507326116,0.67929765,115540.0,115530.0,0.24410525]
[1754507326321,0.67929765,115540.0,115530.0,0.176216]
[1754507326521,0.3016431,115540.0,115530.0,0.003]
[1754507328321,0.3016431,115540.0,115530.0,0.2558266]
[1754507328515,0.3016431,115540.0,115530.0,0.2991966]
[1754507333525,0.3016431,115540.0,115530.0,0.12611]
[1754507333824,0.3016431,115540.0,115530.0,0.10212]
[1754507334529,0.3016431,115540.0,115530.0,0.2752066]
[1754507335624,0.3016431,115540.0,115530.0,0.10212]
[1754507336227,0.3016431,115540.0,115530.0,0.003]
[1754507338023,0.67929765,115540.0,115530.0,0.003]
[1754507338525,0.1731016,115520.0,115510.0,0.09912]
[1754507338826,0.3013716,115520.0,115510.0,0.186566]
[1754507339526,0.3013716,115520.0,115510.0,0.25474395]
[1754507340729,0.67902615,115520.0,115510.0,0.002]
[1754507340920,0.67902615,115520.0,115510.0,0.003]
[1754507342124,0.3014166,115490.0,115480.0,0.82116405]
[1754507342427,0.3014166,115490.0,115480.0,1.25109037]
[1754507342929,0.3014166,115490.0,115480.0,1.31980539]
[1754507343121,0.3014166,115490.0,115480.0,1.27651569]
[1754507343629,0.3024166,115490.0,115480.0,1.28151569]
[1754507344018,0.3034166,115490.0,115480.0,1.28551569]
[1754507346036,0.3034166,115490.0,115480.0,1.26813739]
[1754507347826,0.3034166,115490.0,115480.0,0.89048284]
[1754507348131,0.3034166,115490.0,115480.0,1.26813739]
[1754507355829,0.3034166,115490.0,115480.0,0.89048284]
[1754507356022,0.1751466,115490.0,115480.0,1.26813739]
[1754507356223,0.3051266,115490.0,115480.0,1.26813739]
[1754507361036,0.3051266,115490.0,115480.0,0.89048284]
[1754507361236,0.3051266,115490.0,115480.0,1.26813739]
[1754507363942,0.3051266,115490.0,115480.0,0.89048284]
[1754507364143,0.3051266,115490.0,115480.0,1.26813739]
[1754507365244,0.3051266,115490.0,115480.0,1.19942237]
[1754507366243,0.2714966,115490.0,115480.0,0.77103782]
[1754507366440,0.3897448,115470.0,115460.0,0.12763]
[1754507366736,0.3897448,115470.0,115460.0,0.255416]
[1754507366945,0.3897448,115470.0,115460.0,0.275916]
[1754507367143,0.3897448,115470.0,115460.0,0.252916]
[1754507367343,0.3897448,115470.0,115460.0,0.275916]
[1754507367546,0.3907448,115470.0,115460.0,0.281916]
[1754507368637,0.3917448,115470.0,115460.0,0.283916]
[1754507369244,0.3907448,115470.0,115460.0,0.277916]
[1754507369943,0.76839935,115470.0,115460.0,0.002]
[1754507370141,1.36203935,115470.0,115460.0,0.002]
[1754507371037,0.9843848,115470.0,115460.0,0.002]
[1754507372647,1.36203935,115470.0,115460.0,0.002]
[1754507375649,0.9843848,115470.0,115460.0,0.002]
[1754507376152,0.9843848,115470.0,115460.0,0.04464]
[1754507376448,0.9843848,115470.0,115460.0,0.06514]
[1754507379950,0.9843848,115470.0,115460.0,0.04464]
[1754507382456,0.9843848,115470.0,115460.0,0.01603]
[1754507382748,0.9843848,115470.0,115460.0,0.002]
[1754507385448,0.3907448,115470.0,115460.0,1.07808207]
[1754507385751,0.3907448,115470.0,115460.0,1.14848207]
[1754507386353,0.3907448,115470.0,115460.0,0.77082752]
[1754507386547,0.3907448,115470.0,115460.0,1.14848207]
[1754507387350,0.3907448,115470.0,115460.0,1.74212207]
[1754507387745,0.3375548,115470.0,115460.0,1.74212207]
[1754507388251,0.3709148,115470.0,115460.0,1.14848207]
[1754507388552,0.3898248,115470.0,115460.0,1.14848207]
[1754507388757,0.3375548,115470.0,115460.0,1.14848207]
[1754507389055,0.2419507,115470.0,115460.0,1.13578207]
[1754507390347,0.1986566,115470.0,115460.0,1.13578207]
[1754507390546,0.02548,115470.0,115460.0,1.13578207]
[1754507390747,0.1986564,115470.0,115460.0,1.14848207]
[1754507391450,0.02548,115470.0,115460.0,1.14848207]
[1754507391658,0.001,115470.0,115460.0,1.14848207]
[1754507394056,0.1741765,115470.0,115460.0,1.14848207]
[1754507394660,0.1970565,115470.0,115460.0,1.13578207]
[1754507394860,0.2473465,115470.0,115460.0,1.13578207]
[1754507395058,0.2996165,115470.0,115460.0,1.13578207]
[1754507396257,0.2996165,115470.0,115460.0,1.11314207]
[1754507396559,0.2996165,115470.0,115460.0,0.74818752]
[1754507397354,0.2996165,115470.0,115460.0,0.57499602]
[1754507397560,0.2996165,115470.0,115460.0,0.175216]
[1754507400264,0.2996165,115470.0,115460.0,0.002]
[1754507400265,0.67727105,115470.0,115460.0,0.002]
[1754507401162,0.2996165,115470.0,115460.0,0.002]
[1754507402857,0.67727105,115470.0,115460.0,0.002]
[1754507406464,0.2797364,115450.0,115440.0,0.16698592]
[1754507406666,0.2986464,115450.0,115440.0,0.65935194]
[1754507407864,0.2986464,115450.0,115440.0,0.55957194]
[1754507408070,0.2996464,115450.0,115440.0,0.56557194]
[1754507408266,0.3006464,115450.0,115440.0,0.22566585]
[1754507408470,0.3006464,115450.0,115440.0,0.25427585]
[1754507408874,0.3006464,115450.0,115440.0,0.27342585]
[1754507409071,0.3006464,115450.0,115440.0,0.29624585]
[1754507409771,0.8941664,115450.0,115440.0,0.29624585]
[1754507411767,0.90555744,115450.0,115440.0,0.19646585]
[1754507411974,1.28321199,115450.0,115440.0,0.02324985]
[1754507412867,1.28321199,115450.0,115440.0,0.006]
[1754507416970,0.90555744,115450.0,115440.0,0.006]
[1754507420075,1.28321199,115450.0,115440.0,0.006]
[1754507426785,1.28321199,115450.0,115420.0,0.2883654]
[1754507426786,0.2240164,115430.0,115420.0,0.02861]
[1754507427085,0.8945264,115430.0,115420.0,0.50182602]
[1754507427287,0.8945264,115430.0,115420.0,0.52152602]
[1754507427898,0.8955264,115430.0,115420.0,0.52652602]
[1754507428284,0.8955264,115430.0,115420.0,0.53052602]
[1754507428485,0.8965264,115430.0,115420.0,0.53052602]
[1754507429497,0.8965264,115430.0,115420.0,0.54335602]
[1754507430700,0.8965264,115430.0,115420.0,0.55852602]
[1754507430902,0.8955264,115430.0,115420.0,0.55352602]
[1754507431094,1.27418095,115430.0,115420.0,0.177216]
[1754507432000,0.8965264,115430.0,115420.0,0.205826]
[1754507432191,1.27518095,115430.0,115420.0,0.174216]
[1754507434106,1.27518095,115430.0,115420.0,0.174176]
[1754507434705,1.27518095,115430.0,115420.0,0.230786]
[1754507434901,1.27518095,115430.0,115420.0,0.272676]
[1754507435604,1.27518095,115430.0,115420.0,0.230786]
[1754507437610,0.8975264,115430.0,115420.0,0.272676]
[1754507437799,0.8975264,115430.0,115420.0,0.296176]
[1754507438807,0.8975264,115430.0,115420.0,0.272676]
[1754507439012,1.27518095,115430.0,115420.0,0.187006]
[1754507439306,1.27518095,115430.0,115420.0,0.174176]
[1754507440707,1.27518095,115430.0,115420.0,0.001]
[1754507442599,0.2250265,115410.0,115400.0,0.05045]
[1754507442800,0.8914565,115410.0,115400.0,0.57137602]
[1754507443701,0.8914565,115410.0,115400.0,0.55223602]
[1754507444210,0.8924565,115410.0,115400.0,0.55323602]
[1754507444410,0.8924565,115410.0,115400.0,0.55723602]
[1754507444601,0.8934565,115410.0,115400.0,0.55723602]
[1754507445507,0.8934565,115410.0,115400.0,0.55523602]
[1754507446309,0.8934565,115410.0,115400.0,0.57437602]
[1754507448911,0.8934565,115410.0,115400.0,0.59849602]
[1754507451517,0.8934565,115410.0,115400.0,0.77177752]
[1754507451719,0.8934565,115410.0,115400.0,0.59849602]
[1754507453317,0.8934565,115410.0,115400.0,0.42532002]
[1754507453518,0.8934565,115410.0,115400.0,0.59849602]
[1754507453818,0.8934565,115410.0,115400.0,0.77177742]
[1754507458015,0.8934565,115410.0,115400.0,0.59849602]
[1754507460820,0.8934565,115410.0,115400.0,0.77177742]
[1754507461315,0.2999765,115410.0,115400.0,0.77177742]
[1754507461509,0.002,115410.0,115400.0,2.12056652]
[1754507461710,0.1752664,115410.0,115400.0,2.12056652]
[1754507462115,0.002,115410.0,115400.0,2.12056652]
[1754507462518,0.002,115410.0,115400.0,2.32297521]
[1754507462820,0.1752664,115410.0,115400.0,2.32297521]
[1754507463819,0.1752664,115410.0,115400.0,2.12056652]
[1754507465221,0.002,115410.0,115400.0,2.42056652]
[1754507465421,0.1752664,115410.0,115400.0,2.42056652]
[1754507466710,0.1752664,115410.0,115400.0,2.04291197]
[1754507467623,0.1752664,115410.0,115400.0,2.42056652]
[1754507470924,0.1752664,115410.0,115400.0,2.12056652]
[1754507472418,0.1752664,115410.0,115400.0,1.52708652]
[1754507472614,0.1752664,115410.0,115400.0,2.12048652]
[1754507473114,0.2415407,115420.0,115410.0,0.2231464]
[1754507473327,0.2415407,115420.0,115410.0,0.84529695]
[1754507473518,0.3270507,115420.0,115410.0,1.73865697]
[1754507473720,0.3456107,115420.0,115410.0,1.73865697]
[1754507474723,0.2415407,115420.0,115410.0,1.73865697]
[1754507475026,0.1982266,115420.0,115410.0,1.73865697]
[1754507475220,0.1732566,115420.0,115410.0,1.74065697]
[1754507475418,0.1752566,115420.0,115410.0,1.74265697]
[1754507477822,0.2002266,115420.0,115410.0,1.74265697]
[1754507478827,0.1752566,115420.0,115410.0,1.74265697]
[1754507479627,0.002,115420.0,115410.0,1.74265697]
[1754507480827,0.1752513,115420.0,115410.0,1.74265697]
[1754507481729,0.2002213,115420.0,115410.0,1.74265697]
[1754507481926,0.02697,115420.0,115410.0,1.74265697]
[1754507482621,0.002,115420.0,115410.0,1.74265697]
[1754507486134,0.02697,115420.0,115410.0,1.69265697]
[1754507487033,0.002,115420.0,115410.0,1.69265697]
[1754507487934,0.002,115420.0,115410.0,1.39265695]
[1754507488136,0.002,115420.0,115410.0,1.69265697]
[1754507488734,0.2002214,115420.0,115410.0,2.16634194]
[1754507489838,0.2002214,115420.0,115410.0,1.99316594]
[1754507490031,0.2002214,115420.0,115410.0,2.16634194]
[1754507491840,0.2002214,115420.0,115410.0,1.99316594]
[1754507492033,0.2002214,115420.0,115410.0,2.16634194]
[1754507494338,0.2002214,115420.0,115410.0,1.99316594]
[1754507494540,0.2002214,115420.0,115410.0,2.16634194]
[1754507495645,0.2002214,115420.0,115410.0,1.99316594]
[1754507496331,0.2002214,115420.0,115410.0,2.19557463]
[1754507496843,0.002,115420.0,115410.0,2.19557463]
[1754507500655,0.002,115420.0,115410.0,2.36875063]
[1754507501360,0.3767188,115440.0,115430.0,0.2721864]